bitfinex/quotes_BTCUSD_20250917
["timestamp","ask_amount","ask_price","bid_price","bid_amount"]
[1758081324986,0.75860061,116580.0,116570.0,0.001]
[1758081325194,0.74255902,116580.0,116570.0,0.001]
[1758081325415,0.66015902,116580.0,116570.0,0.001]
[1758081326134,0.66317902,116580.0,116570.0,0.001]
[1758081326341,0.66015902,116580.0,116570.0,0.001]
[1758081326896,0.39593504,116580.0,116570.0,0.001]
[1758081327071,0.99081073,116580.0,116570.0,0.001]
[1758081327956,1.08033218,116580.0,116570.0,0.001]
[1758081328339,0.77177923,116580.0,116570.0,0.001]
[1758081328652,1.08033218,116580.0,116570.0,0.001]
[1758081329090,0.6854772,116580.0,116570.0,0.001]
[1758081329311,0.99403015,116580.0,116570.0,0.001]
[1758081329935,1.07643015,116580.0,116570.0,0.001]
[1758081331298,0.7678772,116580.0,116570.0,0.001]
[1758081331519,1.07643015,116580.0,116570.0,0.001]
[1758081334393,1.07341015,116580.0,116570.0,0.001]
[1758081334962,1.07663015,116580.0,116570.0,0.001]
[1758081336238,1.1631316,116580.0,116570.0,0.001]
[1758081339135,1.1629316,116580.0,116570.0,0.001]
[1758081339533,1.1629307,116580.0,116570.0,0.001]
[1758081341084,1.1597107,116580.0,116570.0,0.001]
[1758081341294,1.07320925,116580.0,116570.0,0.001]
[1758081341682,1.07642925,116580.0,116570.0,0.001]
[1758081348379,1.07642937,116580.0,116570.0,0.001]
[1758081349350,1.07638937,116580.0,116570.0,0.001]
[1758081350298,0.80614937,116580.0,116570.0,0.001]
[1758081350498,1.07316937,116580.0,116570.0,0.001]
[1758081350727,1.15967083,116580.0,116570.0,0.001]
[1758081351321,1.07638938,116580.0,116570.0,0.001]
[1758081351527,1.07316938,116580.0,116570.0,0.001]
[1758081352155,0.17157073,116570.0,116560.0,0.19929443]
[1758081352365,0.54975852,116570.0,116560.0,0.20127443]
[1758081352577,0.52831218,116570.0,116560.0,0.20127443]
[1758081353193,0.52841218,116570.0,116560.0,0.20127443]
[1758081353406,0.55418766,116570.0,116560.0,0.20127443]
[1758081353615,0.55518766,116570.0,116560.0,0.20427443]
[1758081358290,0.57123177,116570.0,116560.0,0.20427443]
[1758081363636,0.12942104,116570.0,116560.0,0.20427443]
[1758081363848,0.42110738,116570.0,116560.0,0.20427443]
[1758081364059,0.39966104,116570.0,116560.0,0.20427443]
[1758081364659,0.38361693,116570.0,116560.0,0.20427443]
[1758081365277,0.11337693,116570.0,116560.0,0.20427443]
[1758081365429,0.38361693,116570.0,116560.0,0.20427443]
[1758081372549,0.38357693,116570.0,116560.0,0.20427443]
[1758081372811,0.35780145,116570.0,116560.0,0.20427443]
[1758081373477,0.35780145,116570.0,116560.0,0.23004954]
[1758081374333,0.35780145,116570.0,116560.0,0.30193781]
[1758081377920,0.35780145,116570.0,116560.0,0.64902195]
[1758081379286,0.08760145,116570.0,116560.0,0.64902195]
[1758081379491,0.35776145,116570.0,116560.0,0.64902195]
[1758081381816,0.35776145,116570.0,116560.0,0.30193781]
[1758081381974,0.35776145,116570.0,116560.0,0.64902195]
[1758081383195,0.35776145,116570.0,116560.0,0.30193781]
[1758081383422,0.35776145,116570.0,116560.0,0.64902195]
[1758081384319,0.35776145,116570.0,116560.0,0.30193781]
[1758081384509,0.35776145,116570.0,116560.0,0.23004954]
[1758081385511,0.35776145,116570.0,116560.0,0.57713368]
[1758081385885,0.08760145,116570.0,116560.0,0.57713368]
[1758081386159,0.37920779,116570.0,116560.0,0.57713368]
[1758081386371,0.35776145,116570.0,116560.0,0.57713368]
[1758081386963,0.35776145,116570.0,116560.0,0.66363513]
[1758081389484,0.87838632,116570.0,116560.0,0.05530511]
[1758081390279,0.87838632,116570.0,116560.0,0.22689055]
[1758081393923,0.87838632,116570.0,116560.0,0.23000055]
[1758081394323,0.87838632,116570.0,116560.0,0.22689055]
[1758081396968,0.87838632,116570.0,116560.0,0.02887511]
[1758081396969,0.90393632,116570.0,116560.0,0.02887511]
[1758081397178,1.00646553,116570.0,116560.0,0.02887511]
[1758081397375,1.37825122,116570.0,116560.0,0.02877511]
[1758081397588,1.37825122,116570.0,116560.0,0.003]
[1758081397831,1.72533536,116570.0,116560.0,0.003]
[1758081398031,1.75548726,116570.0,116560.0,0.003]
[1758081398176,1.78135483,116570.0,116560.0,0.003]
[1758081398368,0.17161489,116540.0,116530.0,0.0001]
[1758081398609,0.89673234,116540.0,116530.0,0.0001]
[1758081398808,0.89980048,116540.0,116530.0,0.0001]
[1758081399305,0.92568347,116540.0,116530.0,0.0001]
[1758081399489,0.92568347,116540.0,116530.0,0.00056895]
[1758081399898,0.92668347,116540.0,116530.0,0.00356895]
[1758081401779,0.92968347,116540.0,116530.0,0.00356895]
[1758081401954,0.65960347,116540.0,116530.0,0.00356895]
[1758081402147,0.92968347,116540.0,116530.0,0.00356895]
[1758081403143,0.93823336,116540.0,116530.0,0.00356895]
[1758081404179,1.01823336,116540.0,116530.0,0.00356895]
[1758081404606,1.10473481,116540.0,116530.0,0.00356895]
[1758081405440,1.10473481,116540.0,116530.0,0.00346895]
[1758081406954,0.83465481,116540.0,116530.0,0.00346895]
[1758081407311,1.10473481,116540.0,116530.0,0.00346895]
[1758081409089,0.48757067,116540.0,116530.0,0.00346895]
[1758081409444,1.10377481,116540.0,116530.0,0.00046895]
[1758081409581,1.10477481,116540.0,116530.0,0.00146895]
[1758081410581,1.07922481,116540.0,116530.0,0.00359895]
[1758081410790,1.07922481,116540.0,116530.0,0.00146895]
[1758081410993,0.75469067,116540.0,116530.0,0.00146895]
[1758081411177,1.10177481,116540.0,116530.0,0.00146895]
[1758081411622,0.83165481,116540.0,116530.0,0.00146895]
[1758081411819,1.10177481,116540.0,116530.0,0.00146895]
[1758081412063,0.46202067,116540.0,116530.0,0.00359895]
[1758081412289,1.09316282,116540.0,116530.0,0.03022895]
[1758081412502,1.09513282,116540.0,116530.0,0.03022895]
[1758081412719,1.11768282,116540.0,116530.0,0.00359895]
[1758081412942,1.11768282,116540.0,116530.0,0.00146895]
[1758081413808,1.12068282,116540.0,116530.0,0.00146895]
[1758081414336,1.12666521,116540.0,116530.0,0.00146895]
[1758081415597,1.12666672,116540.0,116530.0,0.00146895]
[1758081416842,1.12670672,116540.0,116530.0,0.00146895]
[1758081418613,1.12670917,116540.0,116530.0,0.00146895]
[1758081420693,1.12672539,116540.0,116530.0,0.00146895]
[1758081423619,0.85660539,116540.0,116530.0,0.00146895]
[1758081423819,1.1181355,116540.0,116530.0,0.00146895]
[1758081424475,0.21533502,116540.0,116530.0,0.17822857]
[1758081424693,0.48541502,116540.0,116530.0,0.17822857]
[1758081424899,0.48541502,116540.0,116530.0,0.20259857]
[1758081425107,0.21533502,116540.0,116530.0,0.20259857]
[1758081425320,0.48541502,116540.0,116530.0,0.20259857]
[1758081425554,1.00411405,116540.0,116530.0,0.20259857]
[1758081426521,1.00613405,116540.0,116530.0,0.19746857]
[1758081426734,1.51857713,116540.0,116530.0,0.00146895]
[1758081427897,1.52157713,116540.0,116530.0,0.00146895]
[1758081428309,1.51857713,116540.0,116530.0,0.00146895]
[1758081428528,1.4903974,116540.0,116530.0,0.00146895]
[1758081428799,1.4923974,116540.0,116530.0,0.00046895]
[1758081429026,1.4963974,116540.0,116530.0,0.00146895]
[1758081429270,1.49641291,116540.0,116530.0,0.00146895]
[1758081431459,1.38230146,116540.0,116530.0,0.00146895]
[1758081431665,1.40291146,116540.0,116530.0,0.00046895]
[1758081432041,1.40591146,116540.0,116530.0,0.00046895]
[1758081433145,1.40991075,116540.0,116530.0,0.00146895]
[1758081433892,1.35012885,116540.0,116530.0,0.00357895]
[1758081434127,1.08004885,116540.0,116530.0,0.03096895]
[1758081434355,1.35012885,116540.0,116530.0,0.03096895]
[1758081434584,1.35214885,116540.0,116530.0,0.03096895]
[1758081434805,1.17851396,116540.0,116530.0,0.17822857]
[1758081435026,1.17851396,116540.0,116530.0,0.20259857]
[1758081435507,1.00304471,116540.0,116530.0,0.20259857]
[1758081435704,1.35214885,116540.0,116530.0,0.02794895]
[1758081435978,1.37675885,116540.0,116530.0,0.00357895]
[1758081436165,1.37975885,116540.0,116530.0,0.00146895]
[1758081436654,1.37675885,116540.0,116530.0,0.00146895]
[1758081437870,1.02967471,116540.0,116530.0,0.00146895]
[1758081438051,1.3384199,116540.0,116530.0,0.00146895]
[1758081439837,1.0683399,116540.0,116530.0,0.17309857]
[1758081439994,1.3117499,116540.0,116530.0,0.20259857]
[1758081440597,1.31179326,116540.0,116530.0,0.20259857]
[1758081440949,1.31179326,116540.0,116530.0,0.03096895]
[1758081442309,1.40031471,116540.0,116530.0,0.02794895]
[1758081442539,1.42792471,116540.0,116530.0,0.00146895]
[1758081443789,1.11917952,116540.0,116530.0,0.00146895]
[1758081444209,1.42792471,116540.0,116530.0,0.00146895]
[1758081446070,1.42492471,116540.0,116530.0,0.00146895]
[1758081446736,1.42792471,116540.0,116530.0,0.00146895]
[1758081447869,1.42492471,116540.0,116530.0,0.00146895]
[1758081448748,1.42814471,116540.0,116530.0,0.00146895]
[1758081452415,1.4281449,116540.0,116530.0,0.00146895]
[1758081453034,1.5105849,116540.0,116530.0,0.00146895]
[1758081453575,1.51058491,116540.0,116530.0,0.00146895]
[1758081453795,1.51054491,116540.0,116530.0,0.00146895]
[1758081454237,1.48853597,116540.0,116530.0,0.00146895]
[1758081454978,1.21853597,116540.0,116530.0,0.00146895]
[1758081455233,1.4945385,116540.0,116530.0,0.00146895]
[1758081455488,1.2245385,116540.0,116530.0,0.00146895]
[1758081456114,1.48853597,116540.0,116530.0,0.00146895]
[1758081456321,1.4945386,116540.0,116530.0,0.00146895]
[1758081456539,1.48853597,116540.0,116530.0,0.00146895]
[1758081457548,1.50454453,116540.0,116530.0,0.00146895]
[1758081457919,1.48853597,116540.0,116530.0,0.00146895]
[1758081458128,1.54069964,116540.0,116530.0,0.00146895]
[1758081459962,1.54070019,116540.0,116530.0,0.00146895]
[1758081461178,1.54070043,116540.0,116530.0,0.00146895]
[1758081461646,1.22869524,116540.0,116530.0,0.00146895]
[1758081461850,1.51283043,116540.0,116530.0,0.00146895]
[1758081462076,0.81747189,116540.0,116530.0,0.00344895]
[1758081462302,1.08541189,116540.0,116530.0,0.03059895]
[1758081462527,0.81545189,116540.0,116530.0,0.03059895]
[1758081462732,1.08541189,116540.0,116530.0,0.03059895]
[1758081463096,1.39415708,116540.0,116530.0,0.03059895]
[1758081463498,1.08541189,116540.0,116530.0,0.03059895]
[1758081463703,1.39415965,116540.0,116530.0,0.03059895]
[1758081464777,1.1241996,116540.0,116530.0,0.03059895]
[1758081465034,1.3941596,116540.0,116530.0,0.03059895]
[1758081465774,1.1241996,116540.0,116530.0,0.03059895]
[1758081466014,1.3941596,116540.0,116530.0,0.03059895]
[1758081466518,1.1241996,116540.0,116530.0,0.03059895]
[1758081466774,0.81545441,116540.0,116530.0,0.03059895]
[1758081467032,1.08541441,116540.0,116530.0,0.03059895]
[1758081467982,0.81545538,116540.0,116530.0,0.00666895]
[1758081468198,1.08541538,116540.0,116530.0,0.03059895]
[1758081468641,0.71963239,116540.0,116530.0,0.51097376]
[1758081468855,0.71362797,116540.0,116530.0,0.51097376]
[1758081469107,0.71362797,116540.0,116530.0,0.33934414]
[1758081469367,0.71362797,116540.0,116530.0,0.03059895]
[1758081469811,0.71559797,116540.0,116530.0,0.02737895]
[1758081469983,0.74856211,116540.0,116530.0,0.00146895]
[1758081473371,0.74534211,116540.0,116530.0,0.00146895]
[1758081473557,0.72160211,116540.0,116530.0,0.00344895]
[1758081473709,0.72160211,116540.0,116530.0,0.03059895]
[1758081477859,0.72160211,116540.0,116530.0,0.02737895]
[1758081478022,0.74645211,116540.0,116530.0,0.00344895]
[1758081478235,0.74645211,116540.0,116530.0,0.00146895]
[1758081479035,0.83295356,116540.0,116530.0,0.00146895]
[1758081479300,0.74645211,116540.0,116530.0,0.00146895]
[1758081479512,0.74969211,116540.0,116530.0,0.00146895]
[1758081480448,0.74645211,116540.0,116530.0,0.00146895]
[1758081481741,0.74645158,116540.0,116530.0,0.00146895]
[1758081483506,0.74637158,116540.0,116530.0,0.00342895]
[1758081483799,0.72152158,116540.0,116530.0,0.02727895]
[1758081484846,0.45164158,116540.0,116530.0,0.02727895]
[1758081485124,0.72152158,116540.0,116530.0,0.02727895]
[1758081485580,0.70551048,116540.0,116530.0,0.02727895]
[1758081485760,0.72152217,116540.0,116530.0,0.02727895]
[1758081486108,0.72152217,116540.0,116530.0,0.00146895]
[1758081486386,0.74478217,116540.0,116530.0,0.00146895]
[1758081487094,0.74802217,116540.0,116530.0,0.00146895]
[1758081489486,1.14326881,116540.0,116530.0,0.00146895]
[1758081489619,1.05676736,116540.0,116530.0,0.00146895]
[1758081489817,1.05676843,116540.0,116530.0,0.00146895]
[1758081490011,0.74802324,116540.0,116530.0,0.00146895]
[1758081493450,0.74802974,116540.0,116530.0,0.00146895]
[1758081493642,0.74803122,116540.0,116530.0,0.00146895]
[1758081494107,0.77381584,116540.0,116530.0,0.00146895]
[1758081497927,0.17162962,116530.0,116520.0,0.02295581]
[1758081498123,0.29607306,116530.0,116520.0,0.02619581]
[1758081498341,0.27461936,116530.0,116520.0,0.02815581]
[1758081499092,0.37288974,116530.0,116520.0,0.19980016]
[1758081499521,0.54451936,116530.0,116520.0,0.19980016]
[1758081499983,0.54451936,116530.0,116520.0,0.54712423]
[1758081500195,0.54646936,116530.0,116520.0,0.19666016]
[1758081500417,0.54846936,116530.0,116520.0,0.52102842]
[1758081500877,0.54846936,116530.0,116520.0,0.54487842]
[1758081501071,0.55146936,116530.0,116520.0,0.54911842]
[1758081502002,0.63797081,116530.0,116520.0,0.52202842]
[1758081502207,0.66123081,116530.0,116520.0,0.52202842]
[1758081502432,0.63797081,116530.0,116520.0,0.52202842]
[1758081502684,0.63797081,116530.0,116520.0,0.54587842]
[1758081503112,0.63797081,116530.0,116520.0,0.54911842]
[1758081504169,0.55146936,116530.0,116520.0,0.52202842]
[1758081504381,0.55146936,116530.0,116520.0,0.54587842]
[1758081504818,0.55146936,116530.0,116520.0,0.54911842]
[1758081505040,0.55146936,116530.0,116520.0,0.54587842]
[1758081505229,0.55146768,116530.0,116520.0,0.54911842]
[1758081505501,0.37788806,116530.0,116520.0,0.54911842]
[1758081507361,0.95412509,116530.0,116520.0,0.001]
[1758081507586,1.32962889,116530.0,116520.0,0.001]
[1758081507830,1.35541779,116530.0,116520.0,0.001]
[1758081510069,1.08561779,116530.0,116520.0,0.001]
[1758081510255,1.44187924,116530.0,116520.0,0.001]
[1758081511005,1.50705175,116530.0,116520.0,0.001]
[1758081511573,1.23729175,116530.0,116520.0,0.001]
[1758081511815,1.50705175,116530.0,116520.0,0.001]
[1758081516445,1.50705175,116530.0,116520.0,0.001]
[1758081516653,1.49103524,116530.0,116520.0,0.001]
[1758081516860,1.50700545,116530.0,116520.0,0.001]
[1758081518082,1.50698847,116530.0,116520.0,0.001]
[1758081518284,1.50099994,116530.0,116520.0,0.001]
[1758081518756,1.50698739,116530.0,116520.0,0.001]
[1758081519197,1.23722739,116530.0,116520.0,0.001]
[1758081519415,1.23722721,116530.0,116520.0,0.001]
[1758081519595,1.50698721,116530.0,116520.0,0.001]
[1758081521096,1.23722721,116530.0,116520.0,0.001]
[1758081521325,1.50698721,116530.0,116520.0,0.001]
[1758081525218,1.50698397,116530.0,116520.0,0.001]
[1758081532026,1.50099645,116530.0,116520.0,0.001]
[1758081532255,1.23722754,116530.0,116520.0,0.001]
[1758081532485,1.50690754,116530.0,116520.0,0.001]
[1758081536314,1.23722754,116530.0,116520.0,0.001]
[1758081536477,1.50690754,116530.0,116520.0,0.001]
[1758081536684,1.50694562,116530.0,116520.0,0.001]
[1758081538077,1.15962155,116530.0,116520.0,0.001]
[1758081538221,1.50694562,116530.0,116520.0,0.001]
[1758081538651,1.23726562,116530.0,116520.0,0.001]
[1758081538855,1.50694562,116530.0,116520.0,0.001]
[1758081539554,1.23726562,116530.0,116520.0,0.001]
[1758081539775,1.50694562,116530.0,116520.0,0.001]
[1758081540695,1.23726562,116530.0,116520.0,0.001]
[1758081540900,0.88994155,116530.0,116520.0,0.001]
[1758081541330,0.76813931,116530.0,116520.0,0.00305]
[1758081541519,1.11546338,116530.0,116520.0,0.03054]
[1758081541654,1.38510338,116530.0,116520.0,0.03054]
[1758081546911,1.03777931,116530.0,116520.0,0.03054]
[1758081547144,1.38510338,116530.0,116520.0,0.03054]
[1758081547344,1.03777931,116530.0,116520.0,0.03054]
[1758081547525,1.38510338,116530.0,116520.0,0.03054]
[1758081548074,1.11546338,116530.0,116520.0,0.03054]
[1758081548306,1.38510338,116530.0,116520.0,0.03054]
[1758081549890,1.03777931,116530.0,116520.0,0.03054]
[1758081550202,1.38510338,116530.0,116520.0,0.03054]
[1758081550829,1.38512148,116530.0,116520.0,0.03054]
[1758081551582,1.38512134,116530.0,116520.0,0.03054]
[1758081554775,1.38512017,116530.0,116520.0,0.03054]
[1758081555664,1.38727017,116530.0,116520.0,0.00305]
[1758081555830,0.7703061,116530.0,116520.0,0.001]
[1758081556033,1.38719017,116530.0,116520.0,0.02737]
[1758081556191,1.38504017,116530.0,116520.0,0.03054]
[1758081557291,1.0377161,116530.0,116520.0,0.03054]
[1758081557499,1.38504017,116530.0,116520.0,0.03054]
[1758081557621,1.0377161,116530.0,116520.0,0.03054]
[1758081557836,1.38504017,116530.0,116520.0,0.03054]
[1758081558062,1.38719017,116530.0,116520.0,0.001]
[1758081558267,1.41153017,116530.0,116520.0,0.001]
[1758081558679,1.38719017,116530.0,116520.0,0.00305]
[1758081558884,1.38719017,116530.0,116520.0,0.03054]
[1758081559272,1.37117999,116530.0,116520.0,0.03054]
[1758081559454,1.38718501,116530.0,116520.0,0.03054]
[1758081560489,1.38718501,116530.0,116520.0,0.02737]
[1758081561692,1.38718501,116530.0,116520.0,0.03054]
[1758081561919,1.3486874,116530.0,116520.0,0.03054]
[1758081562614,1.34653393,116530.0,116520.0,0.03054]
[1758081563107,1.07697393,116530.0,116520.0,0.03054]
[1758081563290,1.34653393,116530.0,116520.0,0.03054]
[1758081565022,1.34867393,116530.0,116520.0,0.00305]
[1758081565217,1.34867393,116530.0,116520.0,0.001]
[1758081565515,1.34863393,116530.0,116520.0,0.00305]
[1758081565726,1.34649393,116530.0,116520.0,0.03054]
[1758081566308,0.7681477,116530.0,116520.0,0.03054]
[1758081566504,1.34649416,116530.0,116520.0,0.03054]
[1758081568665,1.07697416,116530.0,116520.0,0.03054]
[1758081568883,1.34645416,116530.0,116520.0,0.03054]
[1758081573451,1.0376277,116530.0,116520.0,0.03054]
[1758081573906,1.34645416,116530.0,116520.0,0.03054]
[1758081574771,1.07697416,116530.0,116520.0,0.03054]
[1758081574982,1.34645416,116530.0,116520.0,0.03054]
[1758081579711,1.34045283,116530.0,116520.0,0.03054]
[1758081579928,1.32444988,116530.0,116520.0,0.03054]
[1758081580805,1.34646163,116530.0,116520.0,0.03054]
[1758081585783,1.34638163,116530.0,116520.0,0.03054]
[1758081586331,1.40267136,116530.0,116520.0,0.001]
[1758081588888,1.0938449,116530.0,116520.0,0.001]
[1758081589094,1.40267136,116530.0,116520.0,0.001]
[1758081596123,1.40375136,116530.0,116520.0,0.001]
[1758081596901,1.40367136,116530.0,116520.0,0.001]
[1758081597559,1.40366773,116530.0,116520.0,0.001]
[1758081597991,1.13434773,116530.0,116520.0,0.001]
[1758081598442,1.40366773,116530.0,116520.0,0.001]
[1758081599351,1.375488,116530.0,116520.0,0.001]
[1758081600213,1.06666154,116530.0,116520.0,0.001]
[1758081600423,1.375488,116530.0,116520.0,0.001]
[1758081600839,1.351468,116530.0,116520.0,0.001]
[1758081601068,0.79501154,116530.0,116520.0,0.003]
[1758081601281,1.37636545,116530.0,116520.0,0.001]
[1758081601489,1.40454518,116530.0,116520.0,0.001]
[1758081601700,1.09571872,116530.0,116520.0,0.001]
[1758081601913,1.40454518,116530.0,116520.0,0.001]
[1758081602776,1.40454368,116530.0,116520.0,0.001]
[1758081604959,0.82639722,116530.0,116520.0,0.001]
[1758081605171,1.40454368,116530.0,116520.0,0.001]
[1758081608850,1.40453268,116530.0,116520.0,0.001]
[1758081609313,1.06756622,116530.0,116520.0,0.003]
[1758081609542,1.37640268,116530.0,116520.0,0.02798]
[1758081609748,1.10712268,116530.0,116520.0,0.02798]
[1758081610013,1.37640268,116530.0,116520.0,0.003]
[1758081610201,1.10712268,116530.0,116520.0,0.001]
[1758081610415,1.34822295,116530.0,116520.0,0.03109]
[1758081610620,1.07696295,116530.0,116520.0,0.03109]
[1758081610755,1.34624295,116530.0,116520.0,0.03109]
[1758081610975,1.34822295,116530.0,116520.0,0.03109]
[1758081612055,1.34822295,116530.0,116520.0,0.02798]
[1758081612654,1.34822295,116530.0,116520.0,0.003]
[1758081615182,1.34822295,116530.0,116520.0,0.001]
[1758081615371,1.35143295,116530.0,116520.0,0.001]
[1758081615567,1.40450268,116530.0,116520.0,0.001]
[1758081617930,1.13522268,116530.0,116520.0,0.001]
[1758081618054,1.10712268,116530.0,116520.0,0.003]
[1758081618295,1.37636268,116530.0,116520.0,0.003]
[1758081618490,1.40125268,116530.0,116520.0,0.003]
[1758081618698,1.40125268,116530.0,116520.0,0.001]
[1758081619085,1.10514268,116530.0,116520.0,0.003]
[1758081619288,1.37438268,116530.0,116520.0,0.03109]
[1758081619686,1.37438613,116530.0,116520.0,0.03109]
[1758081620085,1.3462064,116530.0,116520.0,0.03109]
[1758081620728,1.03737994,116530.0,116520.0,0.03109]
[1758081620937,1.3462064,116530.0,116520.0,0.03109]
[1758081623831,1.38484498,116530.0,116520.0,0.03109]
[1758081624035,1.38682498,116530.0,116520.0,0.03109]
[1758081624454,1.38682498,116530.0,116520.0,0.003]
[1758081624874,1.38682498,116530.0,116520.0,0.02798]
[1758081625235,1.11560498,116530.0,116520.0,0.00611]
[1758081625441,1.38484498,116530.0,116520.0,0.03109]
[1758081625835,1.03935994,116530.0,116520.0,0.03109]
[1758081626056,1.38682498,116530.0,116520.0,0.03109]
[1758081626300,1.38682498,116530.0,116520.0,0.02798]
[1758081628494,1.03935994,116530.0,116520.0,0.02798]
[1758081628700,1.38682498,116530.0,116520.0,0.02798]
[1758081629360,1.38484498,116530.0,116520.0,0.003]
[1758081629564,1.38485399,116530.0,116520.0,0.03049]
[1758081630128,1.03738895,116530.0,116520.0,0.03049]
[1758081630339,1.38485399,116530.0,116520.0,0.03049]
[1758081632135,1.03734835,116530.0,116520.0,0.03049]
[1758081632347,1.38481339,116530.0,116520.0,0.03049]
[1758081632560,1.38481339,116530.0,116520.0,0.006]
[1758081632770,1.38481339,116530.0,116520.0,0.001]
[1758081632771,1.38690289,116530.0,116520.0,0.001]
[1758081632906,1.41167289,116530.0,116520.0,0.001]
[1758081634593,1.41167289,116530.0,116520.0,0.00301]
[1758081634594,1.38690289,116530.0,116520.0,0.00301]
[1758081635021,1.03734785,116530.0,116520.0,0.0275]
[1758081635180,1.38481289,116530.0,116520.0,0.0305]
[1758081635400,1.0373465,116530.0,116520.0,0.0305]
[1758081635604,1.38481154,116530.0,116520.0,0.0305]
[1758081636185,1.38690154,116530.0,116520.0,0.0305]
[1758081636407,1.38690154,116530.0,116520.0,0.0275]
[1758081637618,1.38690154,116530.0,116520.0,0.0305]
[1758081638664,0.7681465,116530.0,116520.0,0.00601]
[1758081638901,1.38477154,116530.0,116520.0,0.0305]
[1758081640190,1.0373065,116530.0,116520.0,0.0305]
[1758081640395,1.38477154,116530.0,116520.0,0.0305]
[1758081640832,0.7681465,116530.0,116520.0,0.0305]
[1758081641040,1.38477154,116530.0,116520.0,0.0305]
[1758081641451,1.36276846,116530.0,116520.0,0.0305]
[1758081641651,1.37877008,116530.0,116520.0,0.0305]
[1758081642448,1.38477012,116530.0,116520.0,0.0305]
[1758081643085,1.03130463,116530.0,116520.0,0.0305]
[1758081643295,1.37876967,116530.0,116520.0,0.0305]
[1758081643508,1.36276846,116530.0,116520.0,0.0305]
[1758081644152,1.38476855,116530.0,116520.0,0.0305]
[1758081644711,1.03730351,116530.0,116520.0,0.0305]
[1758081644910,1.38476855,116530.0,116520.0,0.0305]
[1758081647580,1.03730351,116530.0,116520.0,0.0305]
[1758081647784,0.76814351,116530.0,116520.0,0.0305]
[1758081648000,1.2982271,116530.0,116520.0,0.0305]
[1758081648860,0.65149016,116530.0,116520.0,0.20214435]
[1758081649077,0.92061016,116530.0,116520.0,0.0305]
[1758081649295,1.26807551,116530.0,116520.0,0.0305]
[1758081649739,1.35457696,116530.0,116520.0,0.0305]
[1758081650406,1.38681886,116530.0,116520.0,0.00301]
[1758081650626,1.38681886,116530.0,116520.0,0.0275]
[1758081651123,1.38472886,116530.0,116520.0,0.0305]
[1758081651963,1.03726382,116530.0,116520.0,0.0305]
[1758081652175,1.38472886,116530.0,116520.0,0.0305]
[1758081653018,1.38472886,116530.0,116520.0,0.0275]
[1758081653019,1.38681886,116530.0,116520.0,0.0275]
[1758081654695,1.38681886,116530.0,116520.0,0.0305]
[1758081654836,1.38681886,116530.0,116520.0,0.001]
[1758081655485,1.38681886,116530.0,116520.0,0.00301]
[1758081656383,1.38681886,116530.0,116520.0,0.001]
[1758081656736,0.77023382,116530.0,116520.0,0.001]
[1758081656938,1.38468886,116530.0,116520.0,0.0299]
[1758081660339,0.92057047,116530.0,116520.0,0.0299]
[1758081660559,1.26803551,116530.0,116520.0,0.0299]
[1758081661044,1.2680336,116530.0,116520.0,0.0299]
[1758081661453,0.92056856,116530.0,116520.0,0.0299]
[1758081661662,1.2680336,116530.0,116520.0,0.0299]
[1758081661857,1.35453505,116530.0,116520.0,0.0299]
[1758081662301,1.00707001,116530.0,116520.0,0.0299]
[1758081662595,1.35453505,116530.0,116520.0,0.0299]
[1758081663881,1.08545505,116530.0,116520.0,0.20154435]
[1758081664146,0.92056856,116530.0,116520.0,0.20154435]
[1758081664374,1.2680336,116530.0,116520.0,0.20154435]
[1758081664782,1.2422447,116530.0,116520.0,0.20154435]
[1758081665253,1.2422447,116530.0,116520.0,0.0299]
[1758081665471,0.89477966,116530.0,116520.0,0.03]
[1758081665686,0.9022447,116530.0,116520.0,0.03]
[1758081665901,0.9022447,116530.0,116520.0,0.20164435]
[1758081666348,0.55477966,116530.0,116520.0,0.20164435]
[1758081666468,0.9022447,116530.0,116520.0,0.20164435]
[1758081667342,0.9022447,116530.0,116520.0,0.03]
[1758081668436,0.90224362,116530.0,116520.0,0.03]
[1758081670076,0.55477858,116530.0,116520.0,0.03]
[1758081670302,0.90224362,116530.0,116520.0,0.03]
[1758081671632,0.90224362,116530.0,116520.0,0.20164435]
[1758081673905,0.11406896,116530.0,116520.0,0.54910939]
[1758081674118,0.53270117,116530.0,116520.0,0.20164435]
[1758081674340,0.88016621,116530.0,116520.0,0.20164435]
[1758081674544,0.53270117,116530.0,116520.0,0.20164435]
[1758081676755,0.36107155,116530.0,116520.0,0.62119609]
[1758081677973,0.36107155,116530.0,116520.0,0.27373105]
[1758081678140,0.36107155,116530.0,116520.0,0.62119609]
[1758081679817,0.36107155,116530.0,116520.0,0.54910939]
[1758081682812,0.36103155,116530.0,116520.0,0.89657443]
[1758081683066,0.36103155,116530.0,116520.0,0.54910939]
[1758081683279,0.36103155,116530.0,116520.0,0.89657443]
[1758081683700,0.36103155,116530.0,116520.0,0.54910939]
[1758081683912,0.35903155,116530.0,116520.0,0.59683117]
[1758081684800,0.08707155,116530.0,116520.0,0.59583117]
[1758081685014,0.08697155,116530.0,116520.0,0.59583117]
[1758081685233,0.08997155,116530.0,116520.0,0.8915723]
[1758081685439,0.08797155,116530.0,116520.0,0.8905723]
[1758081685881,0.08897155,116530.0,116520.0,0.8915723]
[1758081686336,0.08797155,116530.0,116520.0,0.8915723]
[1758081686560,0.08797155,116530.0,116520.0,0.6226123]
[1758081686790,0.08797155,116530.0,116520.0,0.8915723]
[1758081691992,0.08797155,116530.0,116520.0,0.8915323]
[1758081692904,0.08797155,116530.0,116520.0,0.6226123]
[1758081693119,0.08797155,116530.0,116520.0,0.8915323]
[1758081693957,0.08462463,116530.0,116520.0,0.8915323]
[1758081695215,0.23114,116550.0,116540.0,0.17161489]
[1758081695216,0.26902,116550.0,116540.0,0.17161489]
[1758081695427,0.52712162,116550.0,116540.0,0.20598635]
[1758081695659,0.52712162,116550.0,116540.0,0.20800635]
[1758081695873,0.52712162,116550.0,116540.0,0.23479635]
[1758081696314,0.52712162,116550.0,116540.0,0.23489635]
[1758081697189,0.35552145,116550.0,116540.0,0.23489635]
[1758081697588,0.35952145,116550.0,116540.0,0.24465897]
[1758081698821,0.35952145,116550.0,116540.0,0.21033452]
[1758081699158,0.53112162,116550.0,116540.0,0.21033452]
[1758081700492,0.35952145,116550.0,116540.0,0.5447997]
[1758081712641,0.35952145,116550.0,116540.0,0.23611433]
[1758081712821,0.35952145,116550.0,116540.0,0.5447997]
[1758081713064,0.35952145,116550.0,116540.0,0.30776726]
[1758081713287,0.53112162,116550.0,116540.0,0.30776726]
[1758081713533,0.53112162,116550.0,116540.0,0.23611433]